bitfinex/quotes_ETHUSD_20251218
["timestamp","ask_amount","ask_price","bid_price","bid_amount"]
[1766073659834,3.36897835,2968.3,2967.3,1.76818]
[1766073659835,6.7379567,2968.3,2967.3,1.76818]
[1766073660174,0.46438023,2968.0,2967.1,0.545]
[1766073660468,0.46438023,2968.0,2966.5,0.001]
[1766073660469,1.00938023,2968.0,2966.5,0.001]
[1766073660652,0.405504,2967.9,2966.5,0.001]
[1766073660824,0.405504,2967.9,2966.5,1.3918]
[1766073661029,0.405504,2967.9,2966.5,4.1753]
[1766073661240,0.405504,2967.9,2966.6,1.84203862]
[1766073661567,0.405504,2967.9,2966.6,1.80833]
[1766073662275,0.46438023,2967.7,2966.6,0.41753]
[1766073662486,0.46438023,2967.7,2966.5,0.001]
[1766073662786,0.86988423,2967.1,2965.4,0.001]
[1766073662981,0.405504,2966.9,2965.4,0.001]
[1766073663486,0.86988423,2966.5,2965.2,0.001]
[1766073663647,9.05627458,2966.1,2964.9,0.001]
[1766073663849,0.86988423,2966.0,2964.9,0.001]
[1766073664155,0.545,2965.9,2964.9,0.001]
[1766073664326,0.46438023,2965.7,2964.9,0.001]
[1766073665029,0.46438023,2965.7,2964.7,0.001]
[1766073665256,0.38281518,2965.6,2964.7,0.001]
[1766073665464,0.99261588,2966.4,2964.7,2.7845]
[1766073665632,0.86988423,2966.2,2964.8,1.3918]
[1766073665840,0.86988423,2966.2,2964.9,2.7835]
[1766073666063,0.46438023,2966.2,2965.0,0.03372681]
[1766073666359,0.46438023,2966.2,2964.9,1.3908]
[1766073666559,0.46438023,2966.0,2964.9,1.3908]
[1766073667065,0.46438023,2966.0,2964.9,4.1743]
[1766073667731,0.46438023,2966.0,2964.9,2.7835]
[1766073667966,0.46438023,2966.0,2965.2,1.3908]
[1766073668261,0.46438023,2966.1,2965.2,1.3908]
[1766073668451,0.46438023,2966.0,2965.2,1.80823]
[1766073668852,0.545,2966.3,2965.3,2.8172234]
[1766073669066,0.46438023,2966.2,2965.2,0.41743]
[1766073669268,0.46438023,2966.2,2965.1,0.545]
[1766073669561,0.46438023,2966.2,2965.1,1.9358]
[1766073669864,0.545,2966.3,2965.4,1.3908]
[1766073670070,0.46438023,2966.2,2965.4,1.3908]
[1766073670626,0.46438023,2966.2,2965.1,2.7835]
[1766073670627,0.46438023,2966.1,2965.1,2.7835]
[1766073670877,0.46438023,2966.1,2965.0,1.3908]
[1766073671050,0.46438023,2966.1,2965.1,4.1743]
[1766073671383,10.11054192,2967.2,2965.6,1.3908]
[1766073671535,3.36949929,2967.8,2966.2,1.3908]
[1766073671729,3.36949929,2967.8,2966.1,2.7835]
[1766073671730,6.73904352,2967.8,2966.5,2.7835]
[1766073671942,1.68328458,2967.7,2966.5,4.1743]
[1766073672768,0.46438023,2967.3,2965.6,4.59918023]
[1766073672935,0.545,2967.2,2965.8,0.545]
[1766073673138,0.545,2967.2,2965.8,3.3384]
[1766073673343,0.545,2967.2,2966.1,1.3414]
[1766073673578,0.545,2967.2,2966.2,1.3414]
[1766073673872,0.545,2967.2,2966.3,1.3414]
[1766073674178,0.545,2967.2,2966.3,4.1348]
[1766073674344,0.545,2967.2,2966.4,1.3414]
[1766073674544,0.46438023,2967.1,2966.4,1.3414]
[1766073674756,0.90233711,2967.1,2966.2,0.545]
[1766073676076,0.90233711,2967.1,2965.8,0.71747597]
[1766073676288,0.90233711,2967.1,2965.6,0.545]
[1766073676443,0.90233711,2967.1,2965.8,1.3414]
[1766073676645,6.74081562,2967.0,2965.8,1.3414]
[1766073676848,0.71787725,2966.9,2965.8,1.3414]
[1766073677041,0.545,2966.8,2965.8,1.3414]
[1766073677272,0.545,2966.8,2965.9,1.3414]
[1766073677845,0.545,2966.8,2965.9,4.1348]
[1766073678684,0.545,2966.8,2966.2,1.3414]
[1766073678992,0.545,2966.8,2966.2,4.1348]
[1766073679492,0.545,2966.8,2965.8,1.3414]
[1766073679785,0.545,2966.8,2966.1,4.1348]
[1766073680203,0.295,2966.8,2966.1,4.1348]
[1766073680485,0.46438023,2967.1,2966.1,4.6798]
[1766073680644,1.00938023,2967.3,2966.2,1.3414]
[1766073680844,1.00938023,2967.3,2966.6,1.3414]
[1766073680845,0.545,2967.3,2966.6,1.3414]
[1766073681088,0.002,2966.9,2966.6,1.3414]
[1766073681990,0.002,2966.9,2966.2,0.46798]
[1766073681991,0.002,2966.9,2966.3,1.3414]
[1766073682287,0.002,2966.9,2966.3,2.7934]
[1766073682494,0.002,2966.9,2966.4,4.460938]
[1766073682776,0.002,2966.9,2966.4,4.1348]
[1766073682976,0.002,2966.9,2966.4,1.3414]
[1766073683478,0.46438023,2967.3,2966.5,1.3414]
[1766073684061,3.83444984,2967.3,2966.5,1.3414]
[1766073684432,3.83444984,2967.3,2965.7,2.7934]
[1766073684433,0.544,2967.2,2965.7,2.7934]
[1766073684548,1.11185891,2967.1,2965.8,0.544]
[1766073684744,1.11185891,2967.1,2964.7,1.3424]
[1766073684745,0.09414929,2966.7,2964.7,1.3424]
[1766073684987,0.49965329,2966.5,2964.7,1.3424]
[1766073685353,9.46177858,2966.3,2964.7,0.001]
[1766073685655,0.405504,2965.9,2964.7,0.001]
[1766073685856,0.405504,2966.1,2964.7,0.001]
[1766073685857,0.544,2965.8,2964.7,0.001]
[1766073686055,0.405504,2965.7,2964.3,0.001]
[1766073686681,0.46438023,2965.5,2964.3,0.001]
[1766073687397,0.46438023,2965.5,2964.3,1.3424]
[1766073687608,0.72083781,2965.4,2964.4,0.41368]
[1766073687793,0.544,2965.3,2964.4,0.41368]
[1766073687951,0.544,2965.3,2964.3,0.001]
[1766073688779,0.46438023,2965.1,2964.2,0.001]
[1766073689200,0.46438023,2965.1,2964.3,0.001]
[1766073689384,0.46438023,2965.1,2964.2,0.001]
[1766073689696,0.72092878,2965.0,2964.2,0.001]
[1766073689901,0.72012878,2965.0,2964.2,0.001]
[1766073690501,0.72012878,2965.0,2963.8,0.001]
[1766073690707,0.72012878,2965.0,2963.7,0.001]
[1766073690883,0.46438023,2964.8,2963.6,0.001]
[1766073691081,0.09414929,2963.6,2961.9,0.001]
[1766073691279,0.405504,2962.9,2961.9,0.001]
[1766073691601,0.46438023,2963.0,2961.2,1.3414]
[1766073691602,0.405504,2962.7,2961.2,1.3414]
[1766073691765,0.09414929,2964.3,2961.4,1.3414]
[1766073691968,0.545,2963.6,2962.2,1.3414]
[1766073692192,0.545,2963.6,2961.8,3.37631844]
[1766073692193,0.545,2963.6,2962.3,4.1348]
[1766073692669,0.545,2963.6,2962.4,4.1348]
[1766073692869,0.545,2963.7,2962.7,2.7934]
[1766073693198,0.545,2963.7,2962.4,3.37559455]
[1766073693199,0.545,2963.9,2962.9,1.3414]
[1766073693397,3.37363012,2964.2,2963.0,0.41348]
[1766073693600,3.4666251,2965.2,2963.3,4.1348]
[1766073693601,3.37247581,2965.2,2963.3,4.1348]
[1766073693810,10.21151066,2965.2,2963.6,1.3414]
[1766073694103,0.545,2965.1,2963.6,1.3414]
[1766073694414,1.07565107,2965.0,2963.6,1.75488]
[1766073694898,0.46438023,2964.8,2963.6,1.75488]
[1766073695095,0.545,2964.7,2963.6,1.75488]
[1766073695596,0.46438023,2964.8,2963.6,3.20688]
[1766073695809,0.545,2964.6,2963.7,1.662088]
[1766073696405,0.545,2964.6,2963.7,0.320688]
[1766073696607,0.545,2964.6,2963.5,1.3414]
[1766073696912,0.545,2964.5,2963.9,4.1348]
[1766073697404,0.545,2964.5,2963.6,0.001]
[1766073698411,0.545,2964.5,2963.2,0.545]
[1766073698711,0.545,2964.5,2963.0,0.41348]
[1766073699011,0.46438023,2964.3,2963.0,0.41348]
[1766073699187,0.46438023,2964.3,2962.7,0.545]
[1766073699188,0.76166121,2964.2,2962.7,0.545]
[1766073699387,0.405504,2964.1,2962.5,0.001]
[1766073699708,0.76166121,2964.2,2962.6,1.3414]
[1766073699887,0.405504,2964.0,2962.5,0.001]
[1766073700090,0.405504,2964.0,2962.5,4.1358]
[1766073700274,0.405504,2964.0,2962.6,0.75113936]
[1766073700879,1.00938023,2963.9,2962.6,2.09253936]
[1766073702507,0.46438023,2963.9,2962.6,4.85153936]
[1766073702814,0.46438023,2963.7,2962.6,2.10043936]
[1766073703442,0.76166121,2964.2,2962.7,2.7511]
[1766073703727,3.37225195,2965.4,2962.7,2.7511]
[1766073703728,0.545,2964.6,2963.4,4.1004]
[1766073703884,6.83928435,2965.1,2963.4,4.1004]
[1766073703885,0.545,2964.5,2963.4,4.1004]
[1766073704085,0.545,2964.9,2963.5,1.3493]
[1766073704517,0.545,2964.9,2963.4,3.21564]
[1766073704717,0.545,2964.9,2963.6,4.1004]
[1766073705016,0.405504,2964.6,2963.4,0.46454]
[1766073705320,0.405504,2964.6,2963.2,0.545]
[1766073705516,0.545,2964.5,2963.3,2.7511]
[1766073705720,0.46438023,2964.7,2963.4,1.3493]
[1766073705922,0.545,2964.6,2963.7,1.3493]
[1766073706244,0.545,2964.6,2963.8,0.41004]
[1766073706390,0.545,2964.5,2963.8,4.1004]
[1766073706948,0.545,2964.5,2963.4,6.748913]
[1766073706949,0.95559279,2966.2,2963.9,3.91893299]
[1766073707084,8.67590206,2965.6,2963.6,4.1004]
[1766073707285,0.46438023,2965.5,2963.9,1.3493]
[1766073707511,13.57987125,2966.1,2963.8,6.12510518]
[1766073707512,18.79019353,2966.1,2964.2,1.3493]
[1766073707786,0.09414929,2966.0,2964.3,2.7511]
[1766073707991,0.545,2965.9,2964.5,1.3493]
[1766073708287,0.545,2965.9,2963.6,3.83862771]
[1766073708288,0.46438023,2965.1,2963.6,1.81368023]
[1766073708489,1.45902823,2965.0,2963.7,1.80577802]
[1766073708700,1.45902823,2965.0,2963.7,0.45647802]
[1766073708891,0.46438023,2964.8,2963.5,0.46438023]
[1766073709096,0.46438023,2964.8,2963.4,7.47489542]
[1766073709297,0.91402823,2965.0,2963.8,1.3493]
[1766073709497,1.45902823,2965.0,2963.9,1.3493]
[1766073709718,0.545,2965.0,2964.0,1.3493]
[1766073710017,0.545,2965.0,2963.9,2.7511]
[1766073710207,0.545,2965.0,2963.7,1.3493]
[1766073710208,7.75479695,2965.0,2963.7,1.3493]
[1766073710613,7.75479695,2965.0,2963.6,0.545]
[1766073710831,0.405504,2964.9,2963.3,1.81368023]
[1766073711020,0.46438023,2964.7,2963.4,0.51097802]
[1766073711434,0.46438023,2964.7,2963.5,1.3493]
[1766073712114,0.545,2964.6,2963.5,1.3493]
[1766073713258,1.28041033,2964.8,2963.7,1.3493]
[1766073713409,0.46438023,2964.8,2963.7,1.3493]
[1766073713611,5.88976561,2966.0,2964.1,1.3493]
[1766073713612,1.87901935,2966.0,2964.1,1.3493]
[1766073713808,1.87901935,2966.0,2964.0,2.7511]
[1766073713809,7.28831568,2965.9,2964.4,1.3493]
[1766073714015,7.28831568,2965.9,2964.0,0.545]
[1766073714016,8.67590206,2965.6,2964.0,1.8943]
[1766073714313,8.67590206,2965.6,2964.0,2.35868023]
[1766073714314,0.405504,2965.5,2964.0,2.35868023]
[1766073714511,0.46438023,2965.8,2964.2,4.1004]
[1766073714737,1.26496959,2965.7,2964.3,0.41004]
[1766073715055,0.86988423,2965.4,2964.3,0.41004]
[1766073715353,0.86988423,2965.4,2964.2,1.3493]
[1766073715753,0.86988423,2965.4,2963.8,4.1004]
[1766073715920,0.86988423,2965.4,2963.7,4.1004]
[1766073716420,0.86988423,2965.4,2963.6,3.91919486]
[1766073716421,0.405504,2965.2,2963.5,0.46438023]
[1766073716748,0.405504,2964.9,2963.4,1.3493]
[1766073716923,0.545,2964.8,2963.5,3.37437261]
[1766073717247,0.46438023,2964.8,2963.7,1.3493]
[1766073717425,0.545,2964.7,2963.7,1.3493]
[1766073717828,0.545,2964.7,2963.4,0.87442023]
[1766073718241,0.545,2964.7,2963.5,0.001]
[1766073719022,6.74627268,2964.6,2963.5,0.001]
[1766073719229,0.72912727,2964.5,2963.5,0.001]
[1766073720748,3.83709454,2965.0,2963.9,1.3493]
[1766073720954,0.71996959,2965.7,2964.3,1.3493]
[1766073721148,0.545,2965.6,2964.6,1.3493]
[1766073721464,1.00938023,2965.6,2964.6,1.3493]
[1766073721946,0.545,2965.5,2964.6,1.3493]
[1766073723661,0.46438023,2965.4,2964.1,1.2649]
[1766073723839,0.46438023,2965.4,2964.1,2.06030761]
[1766073724036,8.67590206,2965.2,2963.7,1.2649]
[1766073724223,0.46438023,2964.6,2963.5,0.001]
[1766073724424,0.950504,2964.5,2962.9,2.7703]
[1766073724629,0.405504,2963.6,2962.5,0.001]
[1766073724867,0.545,2963.5,2962.5,0.001]
[1766073725253,0.46438023,2964.0,2962.5,0.001]
[1766073725564,0.91402823,2963.9,2962.7,1.2649]
[1766073725737,0.405504,2964.3,2962.7,2.7703]
[1766073726064,0.46438023,2964.2,2963.0,1.2649]
[1766073726364,0.545,2964.1,2962.5,1.2659]
[1766073726566,0.46438023,2964.2,2962.7,2.7703]
[1766073726866,0.46438023,2964.2,2963.0,4.0352]
[1766073727034,0.7756432,2964.1,2963.0,0.40352]
[1766073727237,0.7756432,2964.1,2962.7,7.41039074]
[1766073727437,0.7756432,2964.1,2962.8,1.2649]
[1766073727674,0.7756432,2964.1,2962.8,4.0352]
[1766073728348,0.7756432,2964.1,2962.8,2.7703]
[1766073728671,0.7756432,2964.1,2963.0,2.7703]
[1766073728878,6.74559006,2964.9,2963.4,2.7703]
[1766073729174,0.545,2964.8,2963.7,1.2649]
[1766073729356,0.46438023,2964.6,2963.6,2.7703]
[1766073729874,0.46438023,2964.7,2963.6,2.7703]
[1766073730081,0.43823397,2964.6,2963.6,3.04733]
[1766073730780,0.545,2964.5,2963.7,1.2649]
[1766073730936,0.46638023,2965.0,2963.9,1.2649]
[1766073730937,0.002,2965.0,2963.9,1.2649]
[1766073731136,0.545,2964.9,2963.7,3.37410357]
[1766073731337,0.545,2964.9,2963.9,4.0352]
[1766073731542,0.46108023,2964.8,2963.6,3.04733]
[1766073732035,0.98340851,2964.9,2963.6,3.04733]
[1766073732249,4.35620606,2964.9,2963.6,7.6864466]
[1766073732448,4.35620606,2964.9,2963.7,1.2406]
[1766073732971,0.545,2964.8,2963.7,4.1125]
[1766073733172,0.545,2964.8,2963.8,0.438953]
[1766073733374,3.81120606,2964.9,2963.8,0.438953]
[1766073733591,1.00938023,2964.8,2963.8,4.551453]
[1766073733944,1.00938023,2964.8,2963.8,1.679553]
[1766073734265,1.00938023,2964.8,2963.6,0.27703]
[1766073734877,0.002,2965.0,2964.2,1.2406]
[1766073735043,0.002,2965.0,2964.4,1.2406]
[1766073735243,0.002,2965.0,2964.4,4.1125]
[1766073735639,0.002,2965.0,2964.4,3.37334827]
[1766073735860,0.002,2965.0,2964.6,4.1125]
[1766073736062,0.002,2965.0,2964.6,2.8719]
[1766073736275,0.002,2965.0,2964.6,4.1125]
[1766073737063,0.46438023,2965.4,2964.5,0.33733483]
[1766073737064,0.002,2966.2,2965.0,2.8719]
[1766073737243,0.545,2965.7,2965.0,2.8719]
[1766073737447,0.002,2966.2,2965.4,4.1125]
[1766073737775,0.002,2966.2,2965.0,0.28719]
[1766073737961,0.002,2966.0,2965.0,0.28719]
[1766073738156,0.545,2965.9,2964.8,3.37286349]
[1766073738340,0.545,2965.9,2965.0,4.1125]
[1766073738744,0.002,2966.0,2964.7,0.405504]
[1766073739057,0.545,2965.9,2964.8,2.8719]
[1766073739378,0.5442,2965.9,2964.9,4.1125]
[1766073739574,0.002,2966.0,2965.1,4.1125]
[1766073739778,3.37354767,2966.0,2965.1,1.2406]
[1766073740081,0.46438023,2965.9,2964.7,2.8719]
[1766073740276,0.46438023,2965.9,2964.6,4.1125]
[1766073740871,0.545,2965.8,2964.6,4.1125]
[1766073741075,0.545,2965.8,2964.8,1.2406]
[1766073741461,0.545,2965.8,2964.8,4.1125]
[1766073741665,3.83611751,2965.9,2964.8,4.1125]
[1766073741866,0.545,2965.7,2964.9,1.2406]
[1766073742179,0.545,2965.7,2964.7,0.41125]
[1766073742360,0.545,2965.7,2964.5,4.1125]
[1766073742558,0.545,2965.7,2964.4,0.545]
[1766073742950,0.49965329,2965.6,2963.7,1.2406]
[1766073743279,0.405504,2965.1,2963.5,2.8719]
[1766073743587,0.46438023,2964.7,2963.4,0.545]
[1766073743749,0.46438023,2964.3,2962.9,1.2406]
[1766073743945,0.545,2964.2,2962.7,2.8719]
[1766073744176,0.545,2964.2,2962.6,0.001]
[1766073744508,0.545,2964.2,2962.7,0.22519802]
[1766073744780,0.545,2964.2,2962.7,1.46579802]
[1766073744958,0.545,2964.1,2962.8,4.1125]
[1766073745457,1.00938023,2964.1,2962.8,7.48764013]
[1766073745663,0.545,2964.0,2963.4,2.8719]
[1766073745882,0.545,2964.0,2963.5,1.2406]
[1766073746280,0.405504,2964.9,2963.5,1.2406]
[1766073746484,0.545,2964.8,2963.6,2.8719]
[1766073746684,0.545,2964.8,2963.6,3.28315]
[1766073746883,7.20974279,2965.0,2963.7,1.2406]
[1766073747087,0.545,2964.7,2963.7,4.1125]
[1766073747449,0.46438023,2964.5,2963.5,0.545]
[1766073747980,0.545,2964.5,2963.9,4.1125]
[1766073748310,6.74513506,2965.1,2964.0,0.41125]
[1766073748311,3.37256753,2965.1,2964.0,0.41125]
[1766073748467,0.545,2965.0,2964.0,4.1125]
[1766073748667,1.00938023,2965.0,2963.5,1.2406]
[1766073748988,3.37188522,2965.7,2964.1,2.8719]
[1766073749177,0.545,2965.6,2964.6,1.2406]
[1766073749372,0.93668852,2965.6,2964.6,1.2406]
[1766073749697,0.46438023,2965.4,2963.7,0.545]
[1766073749884,0.46438023,2965.4,2963.7,1.00938023]
[1766073750192,0.405504,2965.3,2963.9,1.2406]
[1766073750398,0.405504,2965.3,2963.2,4.1125]
[1766073750399,0.86988423,2964.9,2963.2,4.1125]
[1766073750563,0.46438023,2964.4,2962.9,0.77128382]
[1766073750768,0.545,2964.3,2962.9,0.77128382]
[1766073751467,0.46438023,2964.2,2962.9,4.14629334]
[1766073751799,0.545,2964.1,2963.2,1.2406]
[1766073752027,0.545,2964.1,2963.1,1.2406]
[1766073752200,0.545,2964.1,2962.9,3.4169]
[1766073752770,0.545,2964.1,2962.7,1.46579802]
[1766073753270,1.00938023,2964.1,2962.7,1.46579802]
[1766073753492,0.96830554,2964.0,2962.7,1.46579802]
[1766073753871,0.46438023,2963.8,2962.7,1.46579802]
[1766073754471,0.46438023,2963.8,2962.7,0.22519802]
[1766073754872,0.405504,2963.7,2962.6,0.001]
[1766073755073,0.545,2963.6,2962.6,0.001]
[1766073755297,0.545,2963.6,2962.4,0.001]
[1766073755895,0.46438023,2963.4,2962.4,0.001]
[1766073756377,0.46438023,2963.4,2962.4,1.2416]
[1766073756586,0.38387686,2963.3,2962.4,1.2416]
[1766073757010,0.46438023,2963.4,2962.4,4.1135]
[1766073757180,0.46438023,2963.5,2962.5,1.2406]
[1766073757508,0.545,2963.8,2963.1,4.1125]
[1766073757886,0.46438023,2963.9,2963.1,4.1125]
[1766073758091,0.545,2963.9,2963.2,1.65185]
[1766073759101,0.545,2963.9,2963.2,0.41125]
[1766073759289,0.545,2963.9,2962.4,0.001]
[1766073759490,8.67367519,2963.7,2962.4,0.001]
[1766073759811,0.46438023,2963.2,2962.4,0.001]
[1766073760016,7.29468782,2963.1,2962.4,0.001]
[1766073760214,0.77590681,2963.0,2962.4,0.001]
[1766073760791,0.545,2962.9,2962.4,1.2416]
[1766073761314,0.545,2962.9,2962.4,0.001]
[1766073762412,0.002,2963.7,2962.4,0.001]
[1766073762598,0.002,2963.7,2962.5,0.405504]
[1766073762798,0.46438023,2963.6,2962.6,3.9039]
[1766073763011,0.90293502,2963.6,2962.6,0.44499]
[1766073763312,0.002,2963.7,2962.9,1.2308]
[1766073763519,0.545,2963.6,2962.9,1.2308]
[1766073763878,0.547,2963.7,2962.9,3.9039]
[1766073764078,0.5462,2963.7,2962.9,3.9039]
[1766073764281,0.46438023,2963.6,2962.9,3.9039]
[1766073764544,0.46438023,2963.6,2963.0,0.39039]
[1766073764686,0.5462,2963.7,2962.7,2.6731]
[1766073764887,0.5462,2963.7,2962.8,1.2308]
[1766073765085,0.46438023,2963.6,2962.8,3.9039]
[1766073765623,0.46438023,2963.6,2962.4,1.7768]
[1766073765782,0.46438023,2963.6,2962.4,4.4499]
[1766073765988,0.46438023,2963.6,2962.5,0.44499]
[1766073766320,7.21310891,2963.6,2962.5,0.44499]
[1766073766490,3.83874457,2963.6,2962.5,1.2308]
[1766073766684,0.002,2964.9,2962.9,9.07909031]
[1766073766882,7.29081758,2964.8,2963.2,3.9039]
[1766073767113,0.46438023,2964.7,2963.2,3.9039]
[1766073767316,1.11281066,2964.6,2963.3,0.39039]
[1766073767692,9.07909031,2964.4,2962.8,3.9039]
[1766073767898,1.41488423,2964.3,2962.4,0.001]
[1766073768221,1.41488423,2964.3,2961.2,0.09514929]
[1766073768222,0.49965329,2962.5,2960.1,2.6731]
[1766073768384,0.86988423,2961.9,2960.1,3.9039]
[1766073768587,0.405504,2961.7,2960.2,1.79732636]
[1766073769308,0.49965329,2961.7,2960.2,0.56652636]
[1766073769500,0.49965329,2961.7,2960.4,0.003]
[1766073769711,0.49965329,2961.7,2960.0,1.76136364]
[1766073770281,0.86988423,2961.5,2960.0,1.76136364]
[1766073770503,0.86988423,2961.5,2961.2,0.001]
[1766073770504,0.46438023,2961.5,2961.2,0.001]
[1766073770704,0.545,2961.4,2961.2,0.001]
[1766073770915,0.545,2961.3,2960.3,1.2308]
[1766073771113,0.545,2961.3,2960.4,3.9039]
[1766073771313,0.545,2961.3,2960.4,1.2308]
[1766073771517,3.37575532,2962.3,2960.7,2.6731]
[1766073771826,1.00938023,2962.2,2960.7,3.9039]
[1766073771994,0.405504,2962.1,2960.8,3.9039]
[1766073772203,0.46438023,2961.9,2960.8,3.9039]
[1766073772389,0.46438023,2961.9,2960.8,1.2308]
[1766073772819,0.545,2961.8,2960.8,1.2308]
[1766073773015,0.545,2961.8,2960.4,2.6731]
[1766073773223,0.545,2961.8,2960.5,0.39039]
[1766073773398,0.405504,2961.7,2960.0,2.22674387]
[1766073773597,0.405504,2961.7,2960.0,6.13064387]
[1766073773787,0.09414929,2961.6,2960.0,6.13064387]
[1766073773994,0.405504,2961.7,2960.1,3.9039]
[1766073774301,0.46438023,2961.7,2960.3,3.37799874]
[1766073774608,0.545,2961.7,2960.5,3.9039]
[1766073774811,3.3759076,2962.2,2960.8,1.2308]
[1766073775009,5.05456011,2963.5,2961.3,2.6731]
[1766073775010,3.37522043,2962.8,2961.3,2.6731]
[1766073775222,1.34690227,2962.7,2960.8,0.545]
[1766073775404,1.34690227,2962.7,2960.9,3.9039]
[1766073775793,0.09414929,2962.6,2960.9,3.9039]
[1766073776126,0.405504,2962.5,2960.9,3.9039]
[1766073776315,0.46438023,2962.3,2960.9,3.9039]
[1766073776518,1.2665663,2962.2,2961.0,0.44489]
[1766073777926,1.2665663,2962.2,2960.9,1.2308]
[1766073778340,0.46438023,2962.0,2960.6,0.46438023]
[1766073778530,0.46438023,2962.0,2960.5,0.001]
[1766073778834,0.405504,2961.9,2960.5,0.001]
[1766073779033,0.405504,2961.7,2960.0,1.76236364]
[1766073779200,0.405504,2961.5,2960.0,5.66626364]
[1766073779629,0.50184799,2963.1,2960.0,5.66626364]
[1766073779630,0.46438023,2962.0,2960.2,1.2308]
[1766073779821,0.405504,2961.8,2960.2,1.2308]
[1766073780205,0.46438023,2962.0,2960.3,2.6731]
[1766073780411,0.46438023,2962.0,2960.8,1.2308]
[1766073780412,0.46438023,2961.8,2960.8,1.2308]
[1766073780638,0.43855914,2961.7,2960.8,1.2308]
[1766073780838,0.43855914,2961.7,2960.3,1.2308]
[1766073781139,0.43855914,2961.7,2960.8,2.5871]
[1766073781341,0.545,2961.8,2961.2,2.5871]
[1766073781638,3.37541348,2962.6,2960.9,0.545]
[1766073781863,0.545,2962.5,2961.1,1.1828]
[1766073782165,0.545,2962.4,2961.3,1.1828]
[1766073782364,0.46438023,2962.2,2961.3,0.37699]
[1766073782864,3.37504764,2963.0,2961.2,3.37697877]
[1766073783062,3.37504764,2963.0,2961.1,3.7699]
[1766073783063,0.46438023,2962.5,2961.1,3.7699]
[1766073783835,0.46438023,2962.5,2960.9,0.545]
[1766073784150,0.545,2962.4,2960.9,0.545]
[1766073784369,6.75100452,2963.4,2961.2,0.405504]
[1766073784544,1.22951538,2963.3,2961.5,3.37666722]
[1766073784748,0.405504,2963.2,2961.7,3.7699]
[1766073784941,0.545,2963.1,2961.4,3.37676754]
[1766073785140,0.545,2963.1,2961.7,3.7699]
[1766073785438,0.002,2962.5,2961.8,1.1828]
[1766073785644,0.545,2962.4,2961.9,0.37699]
[1766073785968,0.545,2962.4,2961.7,2.5871]
[1766073786170,0.545,2962.4,2961.4,1.1828]
[1766073786354,0.545,2962.4,2961.5,1.1828]
[1766073786850,0.002,2962.5,2961.5,1.1828]
[1766073787057,0.545,2962.3,2961.0,1.1828]
[1766073787243,0.545,2962.3,2961.1,0.551059]
[1766073787444,0.405504,2962.2,2960.2,1.1828]
[1766073787641,0.49965329,2962.2,2960.2,1.1828]
[1766073787830,0.002,2962.5,2960.4,0.46438023]
[1766073788035,0.002,2962.5,2961.3,5.96394854]
[1766073788235,0.002,2962.5,2961.7,3.7699]
[1766073788452,0.002,2962.5,2961.7,0.37699]
[1766073788656,0.545,2962.4,2961.6,1.1828]
[1766073788851,0.5442,2962.4,2961.6,1.1828]
[1766073789577,0.545,2962.4,2961.6,1.1828]
[1766073790285,0.545,2962.4,2961.1,0.46438023]
[1766073790444,3.37575532,2962.3,2961.2,1.1828]
[1766073790645,3.92068264,2962.4,2961.3,0.42342802]
[1766073790840,3.92068264,2962.4,2961.1,6.42860275]
[1766073790841,7.29636528,2962.4,2961.1,0.46438023]
[1766073791041,7.29636528,2962.4,2960.1,0.09514929]
[1766073791042,9.1732396,2962.1,2960.2,1.1828]
[1766073791278,0.405504,2962.0,2960.2,1.1828]
[1766073791475,0.46438023,2962.0,2960.2,1.1828]
[1766073791651,0.405504,2961.8,2960.4,1.1828]
[1766073792680,0.46438023,2961.6,2960.4,1.1828]
[1766073792881,3.37564137,2962.4,2960.8,1.1947]
[1766073793083,0.545,2962.0,2961.0,2.4973]
[1766073793245,0.545,2962.0,2961.1,1.1947]
[1766073793446,0.33776414,2962.3,2961.1,2.4973]
[1766073793650,0.002,2962.5,2961.6,1.1947]
[1766073793850,0.002,2962.4,2961.6,1.1947]
[1766073794079,0.547,2962.4,2961.6,1.1947]
[1766073794556,0.002,2962.4,2961.6,1.1947]
[1766073794851,3.92265812,2962.4,2961.6,1.1947]
[1766073795055,0.547,2962.4,2961.6,1.5639]
[1766073795273,3.92267964,2962.4,2961.6,1.5639]
[1766073795455,0.547,2962.4,2961.6,1.5639]
[1766073795661,0.002,2962.4,2961.7,2.4973]
[1766073795867,0.002,2962.4,2961.8,1.1947]
[1766073796063,0.002,2962.4,2961.8,1.60082]
[1766073796389,0.002,2962.4,2962.0,1.1947]
[1766073796600,0.002,2963.4,2962.3,1.1947]
[1766073796752,0.002,2963.4,2962.0,6.7521832]
[1766073796753,3.37651307,2963.4,2962.0,3.8404662]
[1766073796954,0.002,2963.4,2962.3,0.46438023]
[1766073797210,0.002,2963.4,2962.3,2.4973]
[1766073797528,0.545,2963.3,2962.5,2.4973]
[1766073797670,0.545,2963.3,2962.5,3.692]
[1766073797870,0.002,2963.4,2962.5,3.692]
[1766073798066,0.547,2963.4,2962.6,0.3692]
[1766073798606,0.547,2963.4,2962.7,3.692]
[1766073798800,0.547,2963.4,2962.8,1.1947]
[1766073799371,0.547,2963.4,2962.1,0.90292685]
[1766073799591,0.002,2963.6,2962.0,0.46438023]
[1766073799773,0.002,2964.6,2962.9,2.4973]
[1766073799986,0.002,2964.6,2963.2,0.405504]
[1766073800174,0.002,2964.6,2963.3,2.4973]
[1766073800482,0.002,2964.6,2963.2,0.405504]